fUST/lending_fUST_20250724
["ID","MTS","AMOUNT","RATE_DAILY","PERIOD"]
[374499953,1753325451739,-49.49004605,0.00019178,2]
[374499954,1753325451750,-410.50995395,0.00019178,2]
[374499955,1753325451760,-500.0,0.00019178,2]
[374499956,1753325451769,-500.0,0.00019178,2]
[374499957,1753325451778,-500.0,0.00019178,2]
[374499958,1753325451788,-158.697227,0.00019329,2]
[374499959,1753325451798,-158.697227,0.00019452,2]
[374499960,1753325451807,-4.92781577,0.00019726,2]
[374499961,1753325451819,-1137.18002383,0.00019726,2]
[374499962,1753325451828,-467.94,0.00019726,2]
[374499963,1753325451838,-460.0,0.00019726,2]
[374499964,1753325451847,-470.30982335,0.00019726,2]
[374499965,1753325451856,-544.95,0.00019726,2]
[374499966,1753325451866,-470.13926125,0.00019726,2]
[374499967,1753325451875,-460.0,0.00019726,2]
[374499968,1753325451885,-460.0,0.00019726,2]
[374499969,1753325451894,-460.0,0.00019726,2]
[374499970,1753325451903,-298.72157157,0.00019726,2]
[374499976,1753325726536,-292.36831764,0.00017037,2]
[374499977,1753325728302,-207.63168236,0.00017037,2]
[374499979,1753325863714,175.01526254,0.00016667,2]
[374499980,1753325922453,-164.95781901,0.0001701,2]
[374499981,1753325934924,-303.20164102,0.0001701,2]
[374499982,1753325949857,-164.16062004,0.0001701,2]
[374499983,1753325964901,-265.83937996,0.0001701,2]
[374499984,1753325980122,-191.49565317,0.0001701,2]
[374499986,1753325993383,245.586126,0.00013699,2]
[374499987,1753325994891,-191.13294555,0.0001701,2]
[374499988,1753325997935,-233.70346677,0.0001701,2]
[374499989,1753326113468,5000.0,0.000168,2]
[374499991,1753326165698,178.4586568,0.00016538,2]
[374499996,1753326320178,2721.7674475,0.000168,2]
[374499997,1753326320204,2278.2325525,0.000168,2]
[374499998,1753326351133,-1028.34575288,0.0001705,2]
[374499999,1753326359088,-288.38232,0.0001705,2]
[374500000,1753326426176,-692.15920317,0.0001705,2]
[374500001,1753326432086,-626.20011514,0.0001705,2]
[374500003,1753326443174,-154.54557356,0.00017047,2]
[374500004,1753326443196,-1027.81326531,0.0001705,2]
[374500005,1753326466915,686.723555,0.00016538,2]
[374500006,1753326467304,282.544418,0.00016632,2]
[374500007,1753326467717,208.258867,0.00016706,2]
[374500008,1753326526678,5000.0,0.000168,2]
[374500009,1753326542284,1544.2406075,0.000168,2]
[374500010,1753326542311,3455.7593925,0.000168,2]
[374500011,1753326546074,-219.56252244,0.00017047,2]
[374500012,1753326546095,-550.1339699,0.00017147,2]
[374500013,1753326546116,-405.49474724,0.00017222,2]
[374500014,1753326546136,-307.1509743,0.00017376,2]
[374500015,1753326546156,-117.20107325,0.00017446,2]
[374500016,1753326564123,-5000.0,0.00017272,2]
[374500017,1753326564145,-112.51882215,0.00017446,2]
[374500018,1753326564167,-71.96986925,0.00017806,2]
[374500047,1753326632489,-3659.19530598,0.00017628,2]
[374500048,1753326632501,-433.8591904,0.00017628,2]
[374500049,1753326632512,-671.11408493,0.00017628,2]
[374500057,1753326632601,-235.83141869,0.00017628,2]
[374500059,1753326632610,-214.03384711,0.00017706,2]
[374500061,1753326632621,-88.24334126,0.00017806,2]
[374500063,1753326632635,-500.0,0.00018129,2]
[374500065,1753326632645,-1200.0,0.00018279,2]
[374500067,1753326632655,-1200.0,0.0001828,2]
[374500069,1753326632664,-312.24747653,0.0001828,2]
[374500071,1753326632674,-300.0,0.0001828,2]
[374500073,1753326632684,-300.0,0.0001828,2]
[374500075,1753326632693,-300.0,0.0001828,2]
[374500077,1753326632705,-300.0,0.0001828,2]
[374500079,1753326632714,-1928.94598946,0.00018284,2]
[374500154,1753326638475,-22971.05401054,0.00018284,2]
[374500155,1753326638485,-4011.5597941,0.00018284,2]
[374500156,1753326638496,-17371.72094617,0.00018284,2]
[374500157,1753326638505,-214.03384711,0.00018392,2]
[374500158,1753326638515,-943.59553761,0.00018697,2]
[374500159,1753326638524,-561.71,0.00018797,2]
[374500160,1753326638534,-215.91146883,0.000189,2]
[374500161,1753326638543,-251.95451763,0.00019078,2]
[374500162,1753326638555,-5984.76858593,0.00019078,2]
[374500163,1753326638564,-214.03384711,0.00019078,2]
[374500164,1753326638574,-483.12259243,0.00019078,2]
[374500165,1753326638583,-500.0,0.00019083,2]
[374500166,1753326638592,-709.18,0.00019168,3]
[374500167,1753326638602,-354.57,0.00019168,3]
[374500168,1753326638611,-177.28,0.00019168,3]
[374500169,1753326638620,-68.18402484,0.00019168,3]
[374500170,1753326638634,-463.68597516,0.00019168,3]
[374500171,1753326638643,-397.50277927,0.00019173,2]
[374500172,1753326638655,-102.49722073,0.00019173,2]
[374500173,1753326638664,-500.0,0.00019173,2]
[374500174,1753326638674,-256.63204678,0.00019173,2]
[374500175,1753326638687,-194.65239227,0.00019173,2]
[374500176,1753326638696,-152.89364332,0.00019177,2]
[374500177,1753326638706,-500.0,0.00019178,2]
[374500178,1753326638715,-500.0,0.00019178,2]
[374500179,1753326638725,-219.75481001,0.00019178,2]
[374500180,1753326638737,-238.76439339,0.00019178,2]
[374500181,1753326638746,-379.21970887,0.00019178,2]
[374500182,1753326638757,-120.78029113,0.00019178,2]
[374500183,1753326638766,-204.30047503,0.00019178,2]
[374500184,1753326638775,-460.0,0.00019178,2]
[374500185,1753326638785,-460.0,0.00019178,2]
[374500186,1753326638795,-460.0,0.00019178,2]
[374500187,1753326638804,-460.66219572,0.00019178,2]
[374500188,1753326638814,-460.0,0.00019178,2]
[374500189,1753326638823,-460.0,0.00019178,2]
[374500190,1753326638832,-382.61023728,0.00019178,2]
[374500191,1753326638844,-78.83865809,0.00019178,2]
[374500192,1753326638853,-460.0,0.00019178,2]
[374500193,1753326638863,-460.0,0.00019178,2]
[374500194,1753326638872,-462.85229205,0.00019178,2]
[374500195,1753326638881,-461.5849914,0.00019178,2]
[374500196,1753326638891,-460.0,0.00019178,2]
[374500197,1753326638900,-460.0,0.00019178,2]
[374500199,1753326638909,-209.60751851,0.00019178,2]
[374500200,1753326638919,-478.70290088,0.00019178,2]
[374500201,1753326638928,-460.0,0.00019178,2]
[374500202,1753326638939,-460.88798477,0.00019178,2]
[374500203,1753326638948,-462.42518323,0.00019178,2]
[374500204,1753326638957,-460.0,0.00019178,2]
[374500205,1753326638967,-460.0,0.00019178,2]
[374500206,1753326638976,-351.11425159,0.00019178,2]
[374500207,1753326638985,-460.0,0.00019178,2]
[374500208,1753326638995,-462.57154248,0.00019178,2]
[374500209,1753326639004,-461.50530099,0.00019178,2]
[374500210,1753326639014,-460.0,0.00019178,2]
[374500211,1753326639023,-461.93359898,0.00019178,2]
[374500212,1753326639033,-462.26756632,0.00019178,2]
[374500213,1753326639042,-460.0,0.00019178,2]
[374500214,1753326639051,-460.0,0.00019178,2]
[374500215,1753326639060,-44.12314075,0.00019178,2]
[374500216,1753326639072,-514.51647882,0.00019178,2]
[374500217,1753326639082,-460.0,0.00019178,2]
[374500218,1753326639091,-462.45231138,0.00019178,2]
[374500219,1753326639100,-334.24306644,0.00019178,2]
[374500220,1753326639112,-125.75693356,0.00019178,2]
[374500221,1753326639122,-460.0,0.00019178,2]
[374500222,1753326639132,-462.20378844,0.00019178,2]
[374500223,1753326639141,-460.0,0.00019178,2]
[374500224,1753326639151,-460.0,0.00019178,2]
[374500225,1753326639160,-460.0,0.00019178,2]
[374500226,1753326639170,-400.21684268,0.00019178,2]
[374500227,1753326639182,-61.53445127,0.00019178,2]
[374500228,1753326639192,-460.0,0.00019178,2]
[374500229,1753326639201,-460.0,0.00019178,2]
[374500230,1753326639210,-460.0,0.00019178,2]
[374500231,1753326639220,-518.83641851,0.00019178,2]
[374500232,1753326639230,-596.69738931,0.00019178,2]
[374500233,1753326639239,-460.0,0.00019178,2]
[374500234,1753326639248,-462.07969999,0.00019178,2]
[374500235,1753326639257,-460.0,0.00019178,2]
[374500236,1753326639267,-571.72319245,0.00019178,2]
[374500237,1753326639277,-460.49776684,0.00019178,2]
[374500238,1753326639286,-197.66538933,0.00019178,2]
[374500239,1753326639296,-460.0,0.00019178,2]
[374500240,1753326639306,-460.0,0.00019178,2]
[374500241,1753326639317,-460.0,0.00019178,2]
[374500242,1753326639327,-392.3142419,0.00019178,2]
[374500243,1753326639337,-461.81785526,0.00019178,2]
[374500244,1753326639347,-462.72782661,0.00019178,2]
[374500245,1753326639356,-461.41384998,0.00019178,2]
[374500246,1753326639366,-460.0,0.00019178,2]
[374500247,1753326639375,-460.0,0.00019178,2]
[374500248,1753326639385,-460.0,0.00019178,2]
[374500249,1753326639395,-458.61206655,0.00019178,2]
[374500250,1753326639405,-460.0,0.00019178,2]
[374500251,1753326639416,-460.59278789,0.00019178,2]
[374500252,1753326639426,-1000.0,0.00019178,2]
[374500253,1753326639437,-460.0,0.00019178,2]
[374500254,1753326639447,-463.13647076,0.00019178,2]
[374500255,1753326639456,-460.0,0.00019178,2]
[374500256,1753326639466,-460.0,0.00019178,2]
[374500257,1753326639475,-470.59086973,0.00019178,2]
[374500258,1753326639485,-460.30174636,0.00019178,2]
[374500259,1753326639494,-424.45862152,0.00019178,2]
[374500260,1753326639504,-464.59231578,0.00019178,2]
[374500261,1753326639513,-605.49728214,0.00019178,2]
[374500262,1753326639523,-463.02392968,0.00019178,2]
[374500263,1753326639532,-460.0,0.00019178,2]
[374500264,1753326639541,-460.0,0.00019178,2]
[374500265,1753326639551,-460.0,0.00019178,2]
[374500266,1753326639561,-460.0,0.00019178,2]
[374500267,1753326639570,-460.0,0.00019178,2]
[374500268,1753326639580,-460.0,0.00019178,2]
[374500269,1753326639590,-460.0,0.00019178,2]
[374500270,1753326639599,-464.24661083,0.00019178,2]
[374500271,1753326639608,-460.0,0.00019178,2]
[374500272,1753326639618,-460.0,0.00019178,2]
[374500273,1753326639628,-460.0,0.00019178,2]
[374500274,1753326639640,-500.0,0.00019178,2]
[374500275,1753326639650,-500.0,0.00019178,2]
[374500276,1753326639660,-500.0,0.00019178,2]
[374500277,1753326639672,-500.0,0.00019178,2]
[374500278,1753326639682,-186.69743599,0.00019178,2]
[374500279,1753326639695,-462.58308559,0.00019178,2]
[374500280,1753326639706,-460.0,0.00019178,2]
[374500281,1753326639715,-460.0,0.00019178,2]
[374500282,1753326639725,-460.0,0.00019178,2]
[374500283,1753326639734,-460.0,0.00019178,2]
[374500284,1753326639744,-1399.2,0.00019178,2]
[374500285,1753326639753,-463.72660231,0.00019178,2]
[374500286,1753326639762,-462.2797578,0.00019178,2]
[374500287,1753326639772,-460.0,0.00019178,2]
[374500288,1753326639781,-460.0,0.00019178,2]
[374500289,1753326639791,-475.5322068,0.00019178,2]
[374500290,1753326639801,-462.3564401,0.00019178,2]
[374500291,1753326639812,-460.0,0.00019178,2]
[374500292,1753326639822,-460.0,0.00019178,2]
[374500293,1753326639832,-460.0,0.00019178,2]
[374500294,1753326639841,-460.0,0.00019178,2]
[374500295,1753326639851,-460.0,0.00019178,2]
[374500296,1753326639860,-460.0,0.00019178,2]
[374500297,1753326639870,-460.0,0.00019178,2]
[374500298,1753326639880,-460.0,0.00019178,2]
[374500299,1753326639889,-1806.58,0.00019178,2]
[374500300,1753326639899,-460.0,0.00019178,2]
[374500301,1753326639908,-461.9236966,0.00019178,2]
[374500302,1753326639917,-460.0,0.00019178,2]
[374500303,1753326639926,-460.0,0.00019178,2]
[374500304,1753326639936,-651.5,0.00019178,2]
[374500305,1753326639946,-463.03970623,0.00019178,2]
[374500306,1753326639955,-460.0,0.00019178,2]
[374500307,1753326639965,-460.0,0.00019178,2]
[374500308,1753326639974,-463.12980543,0.00019178,2]
[374500309,1753326639983,-463.40558608,0.00019178,2]
[374500310,1753326639993,-460.0,0.00019178,2]
[374500311,1753326640002,-461.05198855,0.00019178,2]
[374500312,1753326640013,-460.0,0.00019178,2]
[374500313,1753326640022,-460.0,0.00019178,2]
[374500314,1753326640031,-460.0,0.00019178,2]
[374500315,1753326640040,-460.95247467,0.00019178,2]
[374500316,1753326640052,-460.0,0.00019178,2]
[374500317,1753326640061,-465.35213522,0.00019178,2]
[374500318,1753326640070,-465.59525994,0.00019178,2]
[374500319,1753326640079,-460.0,0.00019178,2]
[374500320,1753326640089,-460.0,0.00019178,2]
[374500321,1753326640099,-460.0,0.00019178,2]
[374500322,1753326640108,-460.21140203,0.00019178,2]
[374500324,1753326640118,-460.0,0.00019178,2]
[374500326,1753326640127,-460.0,0.00019178,2]
[374500328,1753326640136,-461.8257664,0.00019178,2]
[374500330,1753326640146,-584.04691873,0.00019178,2]
[374500332,1753326640155,-458.70574999,0.00019178,2]
[374500333,1753326640164,-460.0,0.00019178,2]
[374500335,1753326640173,-460.0,0.00019178,2]
[374500337,1753326640182,-460.0,0.00019178,2]
[374500339,1753326640194,-460.0,0.00019178,2]
[374500340,1753326640204,-566.01904063,0.00019178,2]
[374500341,1753326640214,-460.0,0.00019178,2]
[374500342,1753326640223,-460.0,0.00019178,2]
[374500343,1753326640233,-466.0640245,0.00019178,2]
[374500344,1753326640242,-460.0,0.00019178,2]
[374500345,1753326640252,-291.26490317,0.00019178,2]
[374500346,1753326640261,-460.0,0.00019178,2]
[374500347,1753326640271,-464.65613874,0.00019178,2]
[374500348,1753326640280,-246.85015323,0.00019178,2]
[374500349,1753326640289,-460.0,0.00019178,2]
[374500350,1753326640299,-460.0,0.00019178,2]
[374500351,1753326640308,-460.0,0.00019178,2]
[374500352,1753326640318,-460.0,0.00019178,2]
[374500353,1753326640327,-460.0,0.00019178,2]
[374500354,1753326640337,-196.04479777,0.00019178,2]
[374500355,1753326640347,-460.0,0.00019178,2]
[374500356,1753326640355,-821.71,0.00019178,2]
[374500357,1753326640366,-460.0,0.00019178,2]
[374500358,1753326640375,-460.0,0.00019178,2]
[374500360,1753326640499,-460.0,0.00019178,2]
[374500361,1753326640510,-249.94076708,0.00019178,2]
[374500362,1753326640521,-460.0,0.00019178,2]
[374500364,1753326640530,-460.0,0.00019178,2]
[374500366,1753326640540,-460.0,0.00019178,2]
[374500368,1753326640550,-460.0,0.00019178,2]
[374500370,1753326640559,-462.20566043,0.00019178,2]
[374500372,1753326640569,-460.40127637,0.00019178,2]
[374500373,1753326640578,-463.94729004,0.00019178,2]
[374500375,1753326640587,-460.0,0.00019178,2]
[374500377,1753326640597,-460.0,0.00019178,2]
[374500380,1753326640607,-460.0,0.00019178,2]
[374500382,1753326640617,-465.94337024,0.00019178,2]
[374500383,1753326640626,-468.63511182,0.00019178,2]
[374500386,1753326640644,-460.0,0.00019178,2]
[374500388,1753326640654,-461.11446657,0.00019178,2]
[374500390,1753326640663,-460.0,0.00019178,2]
[374500391,1753326640674,-460.0,0.00019178,2]
[374500393,1753326640685,-460.0,0.00019178,2]
[374500396,1753326640695,-460.0,0.00019178,2]
[374500397,1753326640704,-460.0,0.00019178,2]
[374500399,1753326640715,-460.0,0.00019178,2]
[374500401,1753326640725,-460.0,0.00019178,2]
[374500403,1753326640734,-460.0,0.00019178,2]
[374500405,1753326640744,-460.0,0.00019178,2]
[374500407,1753326640753,-460.0,0.00019178,2]
[374500409,1753326640762,-460.0,0.00019178,2]
[374500411,1753326640771,-460.0,0.00019178,2]
[374500414,1753326640782,-460.0,0.00019178,2]
[374500416,1753326640791,-460.89190463,0.00019178,2]
[374500417,1753326640801,-460.0,0.00019178,2]
[374500420,1753326640812,-460.0,0.00019178,2]
[374500422,1753326640821,-460.0,0.00019178,2]
[374500424,1753326640831,-460.69976876,0.00019178,2]
[374500426,1753326640840,-460.0,0.00019178,2]
[374500428,1753326640850,-460.0,0.00019178,2]
[374500430,1753326640860,-460.0,0.00019178,2]
[374500432,1753326640870,-460.0,0.00019178,2]
[374500434,1753326640879,-463.80019973,0.00019178,2]
[374500436,1753326640888,-460.0,0.00019178,2]
[374500438,1753326640898,-466.91612637,0.00019178,2]
[374500440,1753326640908,-460.0,0.00019178,2]
[374500442,1753326640917,-460.0,0.00019178,2]
[374500444,1753326640928,-500.0,0.00019178,2]
[374500446,1753326640937,-460.0,0.00019178,2]
[374500448,1753326640946,-460.0,0.00019178,2]
[374500450,1753326640955,-460.0,0.00019178,2]
[374500452,1753326640964,-460.0,0.00019178,2]
[374500454,1753326640974,-460.0,0.00019178,2]
[374500456,1753326640983,-460.0,0.00019178,2]
[374500458,1753326640993,-460.0,0.00019178,2]
[374500459,1753326641002,-472.35810222,0.00019178,2]
[374500461,1753326641011,-460.0,0.00019178,2]
[374500463,1753326641021,-460.0,0.00019178,2]
[374500465,1753326641031,-460.0,0.00019178,2]
[374500467,1753326641040,-460.0,0.00019178,2]
[374500469,1753326641049,-467.56866241,0.00019178,2]
[374500472,1753326641062,-462.7489231,0.00019178,2]
[374500473,1753326641071,-460.0,0.00019178,2]
[374500475,1753326641081,-465.07706111,0.00019178,2]
[374500477,1753326641091,-460.0,0.00019178,2]
[374500479,1753326641100,-460.0,0.00019178,2]
[374500481,1753326641109,-465.49738114,0.00019178,2]
[374500483,1753326641119,-460.0,0.00019178,2]
[374500485,1753326641128,-460.0,0.00019178,2]
[374500487,1753326641138,-460.0,0.00019178,2]
[374500490,1753326641148,-467.08250855,0.00019178,2]
[374500492,1753326641157,-465.66257263,0.00019178,2]
[374500494,1753326641167,-500.0,0.00019178,2]
[374500495,1753326641176,-460.0,0.00019178,2]
[374500498,1753326641186,-462.4678689,0.00019178,2]
[374500499,1753326641195,-500.0,0.00019178,2]
[374500501,1753326641204,-460.0,0.00019178,2]
[374500503,1753326641214,-460.0,0.00019178,2]
[374500505,1753326641223,-460.0,0.00019178,2]
[374500507,1753326641232,-460.0,0.00019178,2]
[374500509,1753326641241,-462.43745262,0.00019178,2]
[374500511,1753326641250,-460.0,0.00019178,2]
[374500513,1753326641259,-460.0,0.00019178,2]
[374500515,1753326641268,-460.0,0.00019178,2]
[374500517,1753326641278,-460.0,0.00019178,2]
[374500519,1753326641287,-460.0,0.00019178,2]
[374500521,1753326641296,-460.0,0.00019178,2]
[374500523,1753326641308,-461.30477314,0.00019178,2]
[374500525,1753326641317,-460.0,0.00019178,2]
[374500527,1753326641328,-460.0,0.00019178,2]
[374500529,1753326641337,-592.53242923,0.00019178,2]
[374500531,1753326641346,-460.0,0.00019178,2]
[374500533,1753326641355,-156.85791479,0.00019178,2]
[374500535,1753326641365,-464.92584472,0.00019178,2]
[374500537,1753326641374,-462.87783646,0.00019178,2]
[374500539,1753326641383,-460.0,0.00019178,2]
[374500541,1753326641393,-460.0,0.00019178,2]
[374500543,1753326641402,-460.0,0.00019178,2]
[374500545,1753326641411,-460.0,0.00019178,2]
[374500547,1753326641421,-460.0,0.00019178,2]
[374500549,1753326641430,-460.0,0.00019178,2]
[374500551,1753326641439,-460.0,0.00019178,2]
[374500553,1753326641449,-460.0,0.00019178,2]
[374500555,1753326641458,-460.0,0.00019178,2]
[374500557,1753326641467,-467.57859045,0.00019178,2]
[374500559,1753326641476,-460.0,0.00019178,2]
[374500561,1753326641485,-460.0,0.00019178,2]
[374500563,1753326641496,-467.11454924,0.00019178,2]
[374500565,1753326641505,-425.30214515,0.00019178,2]
[374500567,1753326641514,-460.0,0.00019178,2]
[374500569,1753326641524,-460.0,0.00019178,2]
[374500571,1753326641533,-460.0,0.00019178,2]
[374500573,1753326641543,-460.0,0.00019178,2]
[374500575,1753326641552,-460.0,0.00019178,2]
[374500577,1753326641561,-463.0116488,0.00019178,2]
[374500579,1753326641571,-460.0,0.00019178,2]
[374500581,1753326641580,-460.0,0.00019178,2]
[374500583,1753326641589,-460.0,0.00019178,2]
[374500585,1753326641599,-460.0,0.00019178,2]
[374500587,1753326641608,-463.98710416,0.00019178,2]
[374500589,1753326641618,-460.0,0.00019178,2]
[374500591,1753326641627,-375.70183003,0.00019178,2]
[374500593,1753326641642,-460.0,0.00019178,2]
[374500595,1753326641651,-460.0,0.00019178,2]
[374500597,1753326641661,-460.0,0.00019178,2]
[374500599,1753326641670,-548.68092052,0.00019178,2]
[374500601,1753326641681,-460.0,0.00019178,2]
[374500603,1753326641691,-460.0,0.00019178,2]
[374500605,1753326641700,-460.0,0.00019178,2]
[374500607,1753326641711,-460.0,0.00019178,2]
[374500609,1753326641721,-460.0,0.00019178,2]
[374500611,1753326641730,-461.80901554,0.00019178,2]
[374500613,1753326641740,-461.95564146,0.00019178,2]
[374500615,1753326641750,-460.0,0.00019178,2]
[374500617,1753326641759,-460.0,0.00019178,2]
[374500619,1753326641768,-638.84,0.00019178,2]
[374500621,1753326641778,-467.89570033,0.00019178,2]
[374500623,1753326641787,-456.64740352,0.00019178,2]
[374500625,1753326641796,-460.0,0.00019178,2]
[374500627,1753326641806,-460.0,0.00019178,2]
[374500629,1753326641815,-460.0,0.00019178,2]
[374500631,1753326641825,-463.91113481,0.00019178,2]
[374500633,1753326641834,-460.0,0.00019178,2]
[374500635,1753326641843,-460.0,0.00019178,2]
[374500637,1753326641853,-460.0,0.00019178,2]
[374500639,1753326641863,-460.0,0.00019178,2]
[374500641,1753326641872,-460.0,0.00019178,2]
[374500643,1753326641882,-455.50399767,0.00019178,2]
[374500645,1753326641892,-1491.52,0.00019178,2]
[374500647,1753326641902,-460.0,0.00019178,2]
[374500649,1753326641911,-460.0,0.00019178,2]
[374500651,1753326641921,-460.0,0.00019178,2]
[374500653,1753326641930,-460.0,0.00019178,2]
[374500655,1753326641940,-3055.59,0.00019178,2]
[374500657,1753326641949,-460.0,0.00019178,2]
[374500659,1753326641959,-460.0,0.00019178,2]
[374500661,1753326641968,-460.0,0.00019178,2]
[374500663,1753326641978,-460.0,0.00019178,2]
[374500665,1753326641988,-460.0,0.00019178,2]
[374500667,1753326641997,-460.0,0.00019178,2]
[374500669,1753326642007,-461.70183694,0.00019178,2]
[374500671,1753326642016,-568.79664235,0.00019178,2]
[374500673,1753326642026,-460.0,0.00019178,2]
[374500675,1753326642038,-460.0,0.00019178,2]
[374500677,1753326642047,-5153.85,0.00019178,2]
[374500679,1753326642056,-1524.41,0.00019178,2]
[374500681,1753326642066,-466.20110151,0.00019178,2]
[374500683,1753326642075,-460.0,0.00019178,2]
[374500685,1753326642085,-460.0,0.00019178,2]
[374500687,1753326642093,-460.0,0.00019178,2]
[374500689,1753326642103,-462.09998759,0.00019178,2]
[374500691,1753326642112,-460.0,0.00019178,2]
[374500693,1753326642122,-460.0,0.00019178,2]
[374500695,1753326642132,-460.0,0.00019178,2]
[374500697,1753326642141,-460.0,0.00019178,2]
[374500699,1753326642150,-740.4,0.00019178,2]
[374500701,1753326642161,-460.0,0.00019178,2]
[374500703,1753326642170,-460.0,0.00019178,2]
[374500705,1753326642180,-460.0,0.00019178,2]
[374500707,1753326642190,-460.0,0.00019178,2]
[374500709,1753326642200,-500.0,0.00019178,2]
[374500711,1753326642209,-500.0,0.00019178,2]
[374500713,1753326642219,-460.0,0.00019178,2]
[374500715,1753326642228,-604.46,0.00019178,2]
[374500717,1753326642237,-460.0,0.00019178,2]
[374500719,1753326642246,-460.0,0.00019178,2]
[374500721,1753326642255,-460.0,0.00019178,2]
[374500723,1753326642265,-460.0,0.00019178,2]
[374500725,1753326642274,-460.0,0.00019178,2]
[374500726,1753326642283,-460.0,0.00019178,2]
[374500729,1753326642293,-485.4450677,0.00019178,2]
[374500731,1753326642302,-460.0,0.00019178,2]
[374500733,1753326642312,-460.0,0.00019178,2]
[374500734,1753326642321,-460.0,0.00019178,2]
[374500736,1753326642331,-460.0,0.00019178,2]
[374500738,1753326642339,-460.0,0.00019178,2]
[374500740,1753326642348,-460.0,0.00019178,2]
[374500743,1753326642359,-450.78889359,0.00019178,2]
[374500745,1753326642369,-460.0,0.00019178,2]
[374500747,1753326642378,-460.0,0.00019178,2]
[374500749,1753326642387,-460.0,0.00019178,2]
[374500751,1753326642397,-460.0,0.00019178,2]
[374500752,1753326642406,-708.72,0.00019178,2]
[374500755,1753326642419,-460.0,0.00019178,2]
[374500756,1753326642428,-460.0,0.00019178,2]
[374500759,1753326642438,-460.0,0.00019178,2]
[374500760,1753326642448,-460.0,0.00019178,2]
[374500762,1753326642457,-460.0,0.00019178,2]
[374500764,1753326642467,-460.0,0.00019178,2]
[374500766,1753326642476,-461.00979763,0.00019178,2]
[374500768,1753326642486,-460.0,0.00019178,2]
[374500770,1753326642495,-543.18304701,0.00019178,2]
[374500772,1753326642505,-160.61790249,0.00019178,2]
[374500774,1753326642514,-460.0,0.00019178,2]
[374500776,1753326642523,-460.0,0.00019178,2]
[374500778,1753326642532,-460.0,0.00019178,2]
[374500780,1753326642541,-460.0,0.00019178,2]
[374500782,1753326642550,-460.0,0.00019178,2]
[374500784,1753326642560,-959.1,0.00019178,2]
[374500786,1753326642569,-460.0,0.00019178,2]
[374500788,1753326642579,-460.0,0.00019178,2]
[374500790,1753326642589,-460.0,0.00019178,2]
[374500792,1753326642598,-460.0,0.00019178,2]
[374500794,1753326642608,-472.66320675,0.00019178,2]
[374500796,1753326642618,-460.0,0.00019178,2]
[374500798,1753326642627,-460.0,0.00019178,2]
[374500800,1753326642640,-461.51378854,0.00019178,2]
[374500802,1753326642651,-536.07567153,0.00019178,2]
[374500804,1753326642660,-460.0,0.00019178,2]
[374500806,1753326642669,-172.07252858,0.00019178,2]
[374500809,1753326642680,-460.0,0.00019178,2]
[374500810,1753326642690,-460.0,0.00019178,2]
[374500812,1753326642700,-2609.7,0.00019178,2]
[374500814,1753326642709,-460.0,0.00019178,2]
[374500816,1753326642719,-460.0,0.00019178,2]
[374500818,1753326642729,-460.91864664,0.00019178,2]
[374500820,1753326642738,-784.49,0.00019178,2]
[374500822,1753326642748,-460.0,0.00019178,2]
[374500824,1753326642757,-460.0,0.00019178,2]
[374500826,1753326642767,-460.0,0.00019178,2]